Cogmind - Beta 16 @@@ ROGUE MODE // 2026.01.11 @ 00:09:08 Player: AngelSpirit Result: Destroyed by S-27 Virus with Autogun Performance ------------- Evolutions (6) 3000 Regions Visited (22) 4400 Robots Destroyed (163) 815 Value Destroyed (6793) 6793 Prototype IDs (36) 720 Alien Tech Used (0) 0 Bonus (4945) 4945 TOTAL SCORE: 20673 Bonus ------- High Alert Combat Kills 404 Follower Combat Kills 2155 Network Hubs Disabled 200 Registered with UFD 300 Met Optimus in HQ 500 Met Imprinter 300 Met Zhirov 300 Met R17 at Cetus 500 Read Decrypted Archives 300 Friendly Fire -14 Cogmind --------- Core Integrity 0/1150 Matter 159/300 Energy 150/150 System Corruption 18% Temperature Cool (0) Movement Flying (34) Location -4/Upper Caves Parts ------- > --- POWER (1) -------- Micro Fission Core > --- PROPULSION (6) --- Nuclear Pulse Array Nuclear Pulse Array Field Propulsion Array > --- UTILITY (9) ------ Advanced Heat Sink Advanced Signal Interpreter Advanced Targeting Computer Advanced Targeting Computer Advanced Targeting Computer Advanced Targeting Computer Nanoactuators Advanced Reaction Control System Hacking Suite > --- WEAPON (3) ------- Advanced KE Penetrator Advanced KE Penetrator Companion Sword > --- INVENTORY (5) ---- Antigrav System Advanced Actuator Array Stasis Canceller Hacking Drone Bay (1/1) Advanced Variable Charge Gun Peak State ------------ > --- POWER ------------ Quantum Reactor > --- PROPULSION ------- Antigrav System Antigrav System Antigrav System Improved Gyrokinetic Inverter Antigrav Array > --- UTILITY ---------- Large Storage Unit Advanced Gravity Neutralizer Experimental Optical Array Advanced Sensor Array Improved Signal Interpreter Advanced Signal Interpreter Core Analyzer Improved Medium Armor Plating Advanced Hacking Suite > --- WEAPON ----------- Companion Sword Force Lance Enhanced Force Lance > --- INVENTORY -------- Light Antimatter Reactor Advanced Sensor Array Centrium Medium Armor Plating Advanced Focal Shield Advanced Trap Extractor Hacking Drone Bay Advanced Variable Charge Gun Advanced KE Penetrator Advanced KE Penetrator Hypervelocity Gauss Cannon [Rating: 122] Favorites ----------- Power Improved Ion Engine Engine Improved Ion Engine Power Core Light Fission Core Reactor Quantum Reactor Propulsion Armored Wheel Leg Flexi-carbon Leg Wheel Armored Wheel Hover Unit Cooled Aerolev Unit Flight Unit Nuclear Pulse Array Utility Huge Storage Unit Device Advanced Reaction Control System Storage Huge Storage Unit Processor Improved Signal Interpreter Hackware Improved System Shield Protection Makeshift Light Armor Plating Weapon Subdweller Beam Cannon Energy Gun Subdweller Laser Energy Cannon Subdweller Beam Cannon Ballistic Gun Assault Rifle Ballistic Cannon Light Cannon Launcher Subdweller Shrapnel Launcher Special Weapon Improved Plasma Cutter Impact Weapon Power Maul Slashing Weapon Companion Sword Piercing Weapon Enhanced Force Lance Build | -11 -10 -10 -8 -8 -6 -6 -6 -6 -6 -6 -5 -5 -5 -5 -5 -5 -5 -5 -4 -4 -4 -4 ------- Run | Yrd Mat Sub Rec Scr Fac Was Fac Low Low Zio Pro Fac Was Fac Ext Cet Arc Hub Fac Was Fac Upp Slots Evolved 12 | . . . . . 8 . . . . . . 2 . . . . . . 2 . . . Power . | . . . . . . . . . . . . . . . . . . . . . . . Propulsion 4 | . . . . . 2 . . . . . . 1 . . . . . . 1 . . . Utility 7 | . . . . . 6 . . . . . . 1 . . . . . . . . . . Weapon 1 | . . . . . . . . . . . . . . . . . . . 1 . . . Parts Attached 189 | 7 13 17 1 4 14 12 12 3 2 5 1 2 3 11 7 5 . 1 22 1 46 . Power 26 | 1 2 4 . 1 . 2 5 . . . . . . 2 2 1 . . 2 . 4 . Engine 11 | 1 2 4 . 1 . 1 1 . . . . . . . 1 . . . . . . . Core 8 | . . . . . . 1 3 . . . . . . 1 1 . . . . . 2 . Reactor 7 | . . . . . . . 1 . . . . . . 1 . 1 . . 2 . 2 . Propulsion 44 | 2 3 3 . 1 3 4 1 . . 1 . 1 1 1 . . . . 7 . 16 . Treads . | . . . . . . . . . . . . . . . . . . . . . . . Leg 6 | . . . . . . . . . . . . . . . . . . . . . 6 . Wheel 14 | 2 3 3 . 1 3 . . . . . . . . . . . . . . . 2 . Hover 18 | . . . . . . 3 1 . . 1 . 1 1 1 . . . . 7 . 3 . Flight 6 | . . . . . . 1 . . . . . . . . . . . . . . 5 . Utility 76 | 2 4 2 . . 9 6 3 2 2 3 1 1 1 7 3 2 . . 10 1 17 . Device 34 | 1 1 1 . . 2 1 2 . 1 1 1 . . 5 3 . . . 4 1 10 . Storage 8 | 1 3 . . . . . 1 . . . . . . 1 . . . . 1 . 1 . Processor 14 | . . . . . 1 2 . . 1 1 . . 1 1 . . . . 2 . 5 . Hackware 7 | . . . . . 3 1 . . . . . . . . . . . . 2 . 1 . Protection 13 | . . 1 . . 3 2 . 2 . 1 . 1 . . . 2 . . 1 . . . Artifact . | . . . . . . . . . . . . . . . . . . . . . . . Weapon 43 | 2 4 8 1 2 2 . 3 1 . 1 . . 1 1 2 2 . 1 3 . 9 . Energy Gun 11 | . 1 2 . . . . 1 . . . . . . 1 . 1 . . 1 . 4 . Energy Cannon 7 | . . 5 1 . . . . . . . . . . . . . . . . . 1 . Ballistic Gun 6 | 2 . . . . . . 1 . . . . . . . . 1 . . . . 2 . Ballistic Cannon 2 | . 1 . . . . . . . . . . . . . 1 . . . . . . . Launcher 6 | . 1 1 . . . . . 1 . . . . . . . . . 1 . . 2 . Special Weapon 1 | . . . . . . . . . . . . . . . 1 . . . . . . . Impact Weapon 1 | . . . . . 1 . . . . . . . . . . . . . . . . . Slashing Weapon 4 | . 1 . . 2 . . 1 . . . . . . . . . . . . . . . Piercing Weapon 5 | . . . . . 1 . . . . 1 . . 1 . . . . . 2 . . . Special Melee Weapon . | . . . . . . . . . . . . . . . . . . . . . . . Unidentified Prototypes 24 | . . . . 1 . 3 5 1 . 1 . . 1 5 1 3 . 1 1 . 1 . Parts Lost 54 | . 2 4 . . 6 2 . . . . . . . . 3 1 . 7 10 . 19 . Power 9 | . . 2 . . 1 1 . . . . . . . . . . . 1 1 . 3 . Propulsion 16 | . 1 2 . . 1 . . . . . . . . . . 1 . 3 3 . 5 . Utility 22 | . 1 . . . 3 1 . . . . . . . . 3 . . 1 6 . 7 . Weapon 7 | . . . . . 1 . . . . . . . . . . . . 2 . . 4 . Highest Loss Streak 13 | . 1 1 . . 6 2 . . . . . . . . 2 1 . 7 6 . 13 . To Critical Strikes . | . . . . . . . . . . . . . . . . . . . . . . . Average Backups 13 | 1 9 20 17 18 15 6 7 8 8 8 8 7 8 8 8 8 10 9 10 7 10 5 Power 1 | . 2 2 2 1 1 . . 1 1 1 1 1 1 1 1 . 1 1 . . . . Propulsion 2 | . 2 3 3 2 1 . . 2 2 1 1 . 1 1 1 . . . . . . 1 Utility 5 | . 2 5 7 10 8 4 5 4 3 3 4 4 4 3 3 3 3 3 5 3 5 3 Weapon 4 | . 2 8 5 2 1 . . 1 1 1 1 1 1 1 2 3 5 5 4 4 3 1 Tool/Special . | . . . . . . . . . . . . . . . . . . . . . . . Unused Backups 47 | . 3 6 . 8 1 12 7 . 1 . . . . 3 1 . . . 1 . 3 1 Power 8 | . 2 . . 1 . 1 2 . . . . . . 1 . . . . . . 1 . Propulsion 4 | . . . . 1 . . 1 . . . . . . 2 . . . . . . . . Utility 22 | . . 2 . 2 1 8 4 . 1 . . . . . 1 . . . 1 . 1 1 Weapon 9 | . 1 4 . 4 . . . . . . . . . . . . . . . . . . Tool/Special 4 | . . . . . . 3 . . . . . . . . . . . . . . 1 . Average Slot Usage (%) 90 | . 98 99 100 91 74 81 89 92 93 90 93 88 85 87 85 87 94 91 74 77 69 84 Engine 7 | . 13 13 14 14 4 1 . . . . . . . . . . . . . . . . Core 1 | . . . . . . 4 5 6 6 6 6 5 5 5 4 2 . . . . 1 5 Wheel 14 | . 27 28 28 28 17 5 . . . . . . . . . . . . . . 2 . Hover 8 | . . . . . . 9 19 20 20 20 20 23 23 23 23 21 23 21 15 26 7 . Device 9 | . 12 11 2 . 4 5 6 12 13 13 13 11 11 10 13 17 17 16 9 9 13 15 Storage 9 | . 13 14 14 14 4 1 5 6 6 6 6 5 5 5 5 5 5 5 5 5 3 . Processor 8 | . . . . . 4 12 13 13 13 18 20 17 17 23 17 17 17 17 18 10 11 26 Hackware 3 | . . . . . 13 24 20 13 13 . . . . . . . . . 4 5 2 5 Protection 5 | . . 2 11 14 12 6 5 6 5 11 13 11 8 5 4 6 11 10 4 . . . Energy Gun 1 | . 2 2 . . . . . . . . . . . . . . . . . . 2 . Energy Cannon 9 | . . 23 28 8 . . . . . . . . . . . . . . . . . . Ballistic Cannon 1 | . 12 1 . . . . . . . . . . . . . 4 . . . 4 . . Slashing Weapon 4 | . . . . 11 9 6 9 12 13 7 6 5 5 5 5 5 5 4 4 5 4 5 Piercing Weapon 1 | . . . . . 1 . . . . 4 5 5 5 5 4 . 5 5 4 5 3 . Peak Build Rating 122 | 7 13 21 22 32 99 68 79 78 78 78 76 94 105 105 101 117 117 117 122 95 108 108 Average Rating 53 | 5 8 17 20 24 84 60 70 75 76 74 75 89 91 98 96 100 117 113 98 93 87 108 On Entrance 68 | . 7 13 17 22 32 47 68 76 76 76 76 76 90 105 98 86 117 117 77 89 95 108 Avg Prop Armor Cover (%) 7 | . . . . . . 7 . . . . . . . . . . . . . . 8 . Naked Turns . | . . . . . . . . . . . . . . . . . . . . . . . Heaviest Build 171 | 12 94 107 107 107 171 98 35 41 38 36 36 42 47 47 49 62 60 60 67 55 68 26 Greatest Support 125 | 32 32 24 24 26 82 54 38 38 38 38 38 47 53 61 61 69 69 77 87 56 125 45 Greatest Overweight (x) 4 | . 4 4 4 4 4 1 1 1 . . . . . . . 1 . 1 1 . 3 . Average Overweight (x) 1 | . 1 3 4 3 1 . . . . . . . . . . . . . . . . . Largest Inventory Capacity 25 | 8 25 25 25 25 25 25 10 10 10 10 10 10 10 10 10 10 10 10 15 15 25 5 Average Capacity 17 | 7 19 25 25 25 25 9 9 10 10 10 10 10 10 10 10 10 10 10 12 15 12 5 Most Carried 25 | 3 17 25 23 25 25 23 10 10 10 10 10 8 10 10 10 10 10 10 14 10 15 5 Average Carried 15 | 1 9 23 20 22 18 8 8 9 10 9 9 7 9 9 9 9 10 9 10 8 11 5 Final Capacity 25 | 8 25 25 25 25 25 5 10 10 10 10 10 10 10 10 10 10 10 10 15 15 5 5 Final Carried 24 | 3 17 19 23 24 21 5 10 10 10 10 9 8 10 10 9 10 10 9 8 10 5 5 Scrap Suit Usage (%) 1 | . . . . . . . . . . . . . . . . . . . . . 37 . Parts Cannibalized 1 | . . . . . . . . . . . . . . . . . . . . . 1 . Class Distribution -------------------- 50% | Mutant 16% | Scout 10% | Hacker-Scout 8% | Scavenger-Scout 4% | Hacker-Mutant 4% | Scavenger-Mutant Dominant Class ---------------- Mutant | -10/Materials Mutant | -10/Subcaves Mutant | -8/Recycling Mutant | -8/Scraptown Hacker-Mutant | -6/Factory Hacker-Mutant | -6/Waste Hacker-Scout | -6/Factory Hacker-Scout | -6/Lower Caves Hacker-Scout | -6/Lower Caves Scout | -6/Zion Scout | -5/Proximity Caves Scout | -5/Factory Scout | -5/Waste Scout | -5/Factory Commander-Scout | -5/Extension Scavenger-Scout | -5/Cetus Scavenger-Scout | -5/Archives Scavenger-Scout | -5/Hub_04(d) Scavenger-Scout | -4/Factory Scavenger-Mutant | -4/Waste Scavenger-Mutant | -4/Factory Scavenger-Mutant | -4/Upper Caves Resources | -11 -10 -10 -8 -8 -6 -6 -6 -6 -6 -6 -5 -5 -5 -5 -5 -5 -5 -5 -4 -4 -4 -4 ----------- Run | Yrd Mat Sub Rec Scr Fac Was Fac Low Low Zio Pro Fac Was Fac Ext Cet Arc Hub Fac Was Fac Upp Matter Collected 4972 | 278 418 714 50 30 225 153 261 159 100 16 154 . 50 426 370 387 . 18 341 88 734 . Remotely . | . . . . . . . . . . . . . . . . . . . . . . . Salvage Created 8089 | 10 389 687 209 . 335 . 706 137 259 . . . . 1114 905 531 . 209 943 605 973 77 Parts 366 | 3 31 39 13 . 20 . 30 3 12 . . . . 49 39 23 . 18 43 1 37 5 Haulers Intercepted 9 | . 2 . . . . . 1 . . . . . . 3 . . . 1 2 . . . Recyclers Shooed 3 | . . . . . . . . . . . . . . . . . . 1 . . 2 . Parts Field Recycled . | . . . . . . . . . . . . . . . . . . . . . . . Retrieved Matter . | . . . . . . . . . . . . . . . . . . . . . . . Parts Self-Destructed 56 | . . 18 . . . . . 4 10 . 21 . . . . . . . . . . 3 Prevented . | . . . . . . . . . . . . . . . . . . . . . . . Parts Restored . | . . . . . . . . . . . . . . . . . . . . . . . Kills | -11 -10 -10 -8 -8 -6 -6 -6 -6 -6 -6 -5 -5 -5 -5 -5 -5 -5 -5 -4 -4 -4 -4 ------- Run | Yrd Mat Sub Rec Scr Fac Was Fac Low Low Zio Pro Fac Was Fac Ext Cet Arc Hub Fac Was Fac Upp Combat Hostiles Destroyed 113 | . 9 23 4 . 8 . 7 1 4 . 1 . . 7 15 8 . 3 5 2 13 3 Melee 36 | . . . . . 5 . 7 . . . . . . 7 9 . . . 5 . 3 . Guns 9 | . 2 1 . . . . . . . . . . . . . . . . . . 3 3 Cannons 42 | . 4 14 4 . . . . . . . . . . . 3 8 . . . 2 7 . AOE 25 | . 3 7 . . 3 . . 1 4 . 1 . . . 3 . . 3 . . . . Classes Destroyed 20 | 1 5 3 . . 1 . 3 . 1 . 1 . . 1 1 . . 2 . 1 . . Worker 4 | . . . . . . . . . . . . . . . . . . 1 2 . 1 . Builder 3 | . . . . . . . 1 . . . . . . . . . . 1 . . 1 . Tunneler 1 | 1 . . . . . . . . . . . . . . . . . . . . . . Hauler 9 | . 2 . . . . . 1 . . . . . . 3 . . . 1 2 . . . Recycler 7 | . . . . . . . 1 . . . . . . 2 1 . . . 2 . 1 . Minesweeper 1 | . . . . . . . . . 1 . . . . . . . . . . . . . Mechanic 1 | . . . . . . . 1 . . . . . . . . . . . . . . . Operator 7 | . 1 . . . 1 . 1 . . . . . . 1 2 . . . . . 1 . Drone 1 | . . . . . . . . . . . 1 . . . . . . . . . . . Turret 2 | . . 2 . . . . . . . . . . . . . . . . . . . . Watcher 15 | . 3 . . . . . . . . . . . . 2 1 2 . 1 5 . 1 . Swarmer 29 | . 3 7 . . 4 . . 1 4 . . . . . 4 . . . . . 3 3 Cutter 3 | . . . . . . . . . . . . . . . . . . 3 . . . . Grunt 27 | . 6 2 . . 2 . 4 . . . . . . . 4 . . . . . 9 . Sentry 17 | . . 1 4 . 1 . 2 . . . . . . 3 5 . . . 1 . . . Hunter 4 | . . . . . . . . . . . . . . 2 1 . . . 1 . . . Programmer 8 | . . . . . 1 . 1 . . . . . . 2 . . . . 3 . 1 . Behemoth 1 | . . . . . . . . . . . . . . . 1 . . . . . . . Compactor 2 | . . . . . . . . . . . . . . . . . . . . 2 . . Cetus Guard 8 | . . . . . . . . . . . . . . . . 8 . . . . . . Subdweller 13 | . . 13 . . . . . . . . . . . . . . . . . . . . Packrat 2 | . . . . . . . . 2 . . . . . . . . . . . . . . Best Kill Streak 7 | 1 6 5 1 . 4 . 2 1 5 . 1 . . 2 4 5 . 6 2 1 7 3 Combat Bots Only 7 | . 5 5 1 . 4 . 2 1 4 . 1 . . 2 3 4 . 3 2 1 7 3 Max Kills in Single Turn 4 | 1 3 4 1 . 3 . 1 1 3 . 1 . . 1 3 1 . 3 1 1 1 2 Gunslinging . | . . . . . . . . . . . . . . . . . . . . . . . Exploded 4 | . 3 4 . . 3 . . 1 3 . 1 . . . 3 . . 1 . . . . Melee 1 | . . . . . 1 . 1 . . . . . . 1 1 . . . 1 . 1 . Uniques/NPCs Destroyed . | . . . . . . . . . . . . . . . . . . . . . . . Combat | -11 -10 -10 -8 -8 -6 -6 -6 -6 -6 -6 -5 -5 -5 -5 -5 -5 -5 -5 -4 -4 -4 -4 -------- Run | Yrd Mat Sub Rec Scr Fac Was Fac Low Low Zio Pro Fac Was Fac Ext Cet Arc Hub Fac Was Fac Upp Hostile Shots Fired 993 | . 30 70 4 . 189 1 43 12 3 . 8 . . 53 63 10 . 100 164 . 219 24 Missed 371 | . 10 24 1 . 72 . 18 5 1 . 6 . . 30 25 3 . 38 67 . 55 16 Hits 622 | . 20 46 3 . 117 1 25 7 2 . 2 . . 23 38 7 . 62 97 . 164 8 Melee 9 | . . . . . . 1 . . . . . . . . . . . 8 . . . . Projectile 613 | . 20 46 3 . 117 . 25 7 2 . 2 . . 23 38 7 . 54 97 . 164 8 AOE 12 | . . 2 . . . . . . . . . . . . 10 . . . . . . . Critical Strikes 34 | . 1 . . . 3 . 1 . . . 1 . . 1 5 1 . 8 3 . 9 1 Part Disruptions 1 | . . . . . 1 . . . . . . . . . . . . . . . . . Damage Taken 11927 | . 262 924 47 . 1206 44 473 162 49 . 70 . . 483 1311 210 . 1604 1548 . 3414 120 Core 2270 | . 64 88 16 . 114 . 107 18 36 . 33 . . 102 255 100 . 182 370 . 736 49 Absorbed by Shields 18 | . . . . . . . . . . . . . . . 18 . . . . . . . Ignored by Resistances 180 | . . . . . 74 . . . . . . . . . . . . . 106 . . . Regen/Repaired (Parts) 494 | . . . . . 135 23 86 20 . . 6 . 101 113 . . . . . . 10 . Core Remaining (%) 57 | 100 . . . 32 . . . . . . 63 . . . . . . 36 . . . . Volleys Fired 293 | 2 38 94 6 . 2 . . 5 2 . 3 . . . 19 38 . 4 7 22 48 3 Largest 3 | 2 2 2 2 . 1 . . 1 1 . 1 . . . 1 1 . 1 1 1 3 2 Hottest 225 | 40 86 160 160 . 40 . . 39 39 . 39 . . . 51 51 . 46 80 51 225 70 Shots Fired 424 | 4 74 155 11 . 1 . . 5 2 . 3 . . . 19 38 . 4 7 22 73 6 Gun 123 | 4 36 31 . . . . . . . . . . . . . . . . 7 . 39 6 Cannon 274 | . 36 115 11 . . . . . . . . . . . 18 38 . . . 22 34 . Launcher 27 | . 2 9 . . 1 . . 5 2 . 3 . . . 1 . . 4 . . . . Special . | . . . . . . . . . . . . . . . . . . . . . . . Kinetic 190 | 4 69 21 . . 1 . . . . . . . . . 18 38 . . . 22 11 6 Thermal 213 | . 3 130 11 . . . . . . . . . . . . . . . 7 . 62 . Explosive 19 | . 2 4 . . . . . 5 2 . 3 . . . 1 . . 2 . . . . Electromagnetic 2 | . . . . . . . . . . . . . . . . . . 2 . . . . Robot Hit Streak 17 | 1 6 17 13 . . . . . 14 . . . . . 7 10 . 2 . 5 12 3 Robot Miss Streak 4 | 1 3 3 . . . . . . . . . . . . 1 3 . 1 . 1 4 1 Penetration Max 1 | . . . . . . . . . . . . . . . . 1 . . . . . 1 Secondary Targets . | . . . . . . . . . . . . . . . . . . . . . . . Capacitor 23 | . . . . . . . . . . . . . . . . . . . . . 23 . Shots Hit Robots 439 | 2 45 56 9 . 23 . 38 2 7 . 11 . . 42 45 30 . 4 46 16 59 4 Core Hits 230 | 2 23 29 4 . 14 . 11 2 7 . 3 . . 17 26 15 . 15 20 5 34 3 Critical Kills 22 | . . 1 . . . . . . . . . . . . 4 10 . . . 2 5 . Critical Parts Destroyed 17 | . . . . . . . . . . . . . . . 3 7 . . . 1 4 2 Critical Strikes 66 | . 1 3 . . . . . . . . . . . 4 8 23 . . 4 11 10 2 Burn 1 | . . 1 . . . . . . . . . . . . . . . . . . . . Meltdown 2 | . . 1 . . . . . . . . . . . . . . . . . . 1 . Destroy 52 | . . . . . . . . . . . . . . . 8 23 . . . 11 8 2 Blast 2 | . 1 1 . . . . . . . . . . . . . . . . . . . . Impale 1 | . . . . . . . . . . . . . . . . . . . . . 1 . Melee Attacks 379 | . 1 . . . 32 . 61 3 7 2 17 6 . 97 37 . . 9 70 . 37 . Impact . | . . . . . . . . . . . . . . . . . . . . . . . Slashing 329 | . 1 . . . 32 . 61 3 7 1 12 4 . 85 33 . . 4 55 . 31 . Piercing 50 | . . . . . . . . . . 1 5 2 . 12 4 . . 5 15 . 6 . Sneak Attacks 31 | . . . . . . . 6 2 1 . . . . 6 3 . . . 13 . . . Combat Hostiles 3 | . . . . . . . 2 . . . . . . . 1 . . . . . . . Follow-up Attacks 40 | . . . . . 6 . 5 . . . 5 . . 7 2 . . . 11 . 4 . Damage Inflicted 18551 | 31 834 2023 246 . 1093 . 1764 466 695 . 654 . . 2230 2115 502 . 1083 2459 291 1938 127 Guns 1188 | 31 323 202 . . . . . . . . . . . . . . . . . . 505 127 Cannons 3310 | . 413 1009 246 . . . . . . . . . . . 263 502 . . . 291 586 . Explosions 3152 | . 98 812 . . 172 . . 287 285 . 210 . . . 311 . . 977 . . . . Melee 10898 | . . . . . 921 . 1764 179 410 . 444 . . 2230 1541 . . 103 2459 . 847 . Ramming 3 | . . . . . . . . . . . . . . . . . . 3 . . . . Kinetic 2818 | 31 690 580 . . 172 . . . . . . . . . 263 502 . . . 291 162 127 Thermal 2439 | . 46 1045 246 . . . . . . . . . . . . . . 173 . . 929 . Explosive 2175 | . 98 398 . . . . . 287 285 . 210 . . . 311 . . 586 . . . . Electromagnetic 218 | . . . . . . . . . . . . . . . . . . 218 . . . . Impact . | . . . . . . . . . . . . . . . . . . . . . . . Slashing 9601 | . . . . . 921 . 1764 179 410 . 324 . . 1961 1409 . . 47 1848 . 738 . Piercing 1297 | . . . . . . . . . . . 120 . . 269 132 . . 56 611 . 109 . Highest Corruption 18 | . . . . . 4 4 7 7 7 7 . . . 2 2 . . 5 4 18 18 18 Average Corruption 8 | . . . . . 2 4 5 7 7 7 . . . 1 1 . . 1 3 10 18 18 Corruption Purged 9 | . . . . . . . . . . . . . . 3 2 . . . 4 . . . Corruption Blocked . | . . . . . . . . . . . . . . . . . . . . . . . Effects 142 | . . . . . 1 6 26 17 18 . . . . 5 1 . . . 7 8 48 5 Message Errors 32 | . . . . . . 3 6 7 2 . . . . . . . . . 1 1 10 2 Matter Fused 30 | . . . . . . 2 6 3 3 . . . . 1 . . . . 1 3 11 . Heat Flow Errors 18 | . . . . . . . 4 2 4 . . . . 1 . . . . 2 . 5 . Energy Discharges 26 | . . . . . . 1 4 4 5 . . . . 2 . . . . 2 . 8 . Parts Rejected 3 | . . . . . . . 1 . . . . . . . . . . . . 1 1 . Parts Fused 2 | . . . . . . . 1 . . . . . . . . . . . 1 . . . Data Loss (minor) 15 | . . . . . . . 2 1 4 . . . . 1 . . . . . 2 3 2 Data Loss (major) 6 | . . . . . 1 . 1 . . . . . . . 1 . . . . . 3 . Misfires 1 | . . . . . . . . . . . . . . . . . . . . . 1 . Alerts 3 | . . . . . . . 1 . . . . . . . . . . . . . 2 . Misdirections 4 | . . . . . . . . . . . . . . . . . . . . 1 2 1 Weapon Failures 2 | . . . . . . . . . . . . . . . . . . . . . 2 . Overload Shots . | . . . . . . . . . . . . . . . . . . . . . . . Overflow Damage 1331 | . . 27 . . 66 . 117 175 199 . 113 . . 156 54 . . 76 340 . 8 . Projectiles 5 | . . 5 . . . . . . . . . . . . . . . . . . . . Explosions 229 | . . 22 . . 4 . . 30 13 . 77 . . . 7 . . 76 . . . . Melee 1097 | . . . . . 62 . 117 145 186 . 36 . . 156 47 . . . 340 . 8 . Knockbacks 6 | . 5 . . . . . . . . . . . . . . . . . . . 1 . Impact . | . . . . . . . . . . . . . . . . . . . . . . . Kinetic 6 | . 5 . . . . . . . . . . . . . . . . . . . 1 . Secondary . | . . . . . . . . . . . . . . . . . . . . . . . Self-Inflicted Damage 350 | . 14 23 . . . . . 50 . . 13 . . . . . . 250 . . . . Shots 10 | . 1 1 . . . . . 1 . . 1 . . . . . . 6 . . . . Rammed 1 | . . . . . . . . . . . . . . . . . . 1 . . . . Targets Rammed 1 | . . . . . . . . . . . . . . . . . . 1 . . . . Kicked . | . . . . . . . . . . . . . . . . . . . . . . . Crushed . | . . . . . . . . . . . . . . . . . . . . . . . Highest Temperature 315 | . 81 231 315 . 9 . 201 248 206 . . . . 83 4 8 . 52 200 193 178 . Average Temperature 55 | . 19 41 103 . 6 . 86 107 87 . . . . 55 4 3 . 18 49 81 37 . Received Heat Transfer 2290 | . 156 144 9 . 318 . 201 . . . 9 . . . 171 . . 306 123 . 853 . Effects 2 | . . . . . . . . . 2 . . . . . . . . . . . . . Interference 2 | . . . . . . . . . 2 . . . . . . . . . . . . . Siege Activations . | . . . . . . . . . . . . . . . . . . . . . . . Martial Activations . | . . . . . . . . . . . . . . . . . . . . . . . Shielding Activations . | . . . . . . . . . . . . . . . . . . . . . . . Robots Disrupted 6 | . . . . . 1 . . . . . . . . 1 1 . . . 1 . 2 . Combat Hostiles 5 | . . . . . 1 . . . . . . . . 1 . . . . 1 . 2 . Robots Corrupted . | . . . . . . . . . . . . . . . . . . . . . . . Combat Hostiles . | . . . . . . . . . . . . . . . . . . . . . . . Parts Fried 2 | . . . . . . . . . . . . . . . . . . 2 . . . . Impact Corruptions . | . . . . . . . . . . . . . . . . . . . . . . . Robots Melted 2 | . . 1 . . . . . . . . . . . . . . . . . . 1 . Combat Hostiles 1 | . . 1 . . . . . . . . . . . . . . . . . . . . Parts Melted 9 | . . 3 . . . . 2 . . . . . . . . . . . . . 4 . Heat Transferred 3718 | . 111 1580 333 . . . . . . . . . . . . . . 200 . . 1494 . Parts Sabotaged . | . . . . . . . . . . . . . . . . . . . . . . . Parts Stolen . | . . . . . . . . . . . . . . . . . . . . . . . Parts Stripped . | . . . . . . . . . . . . . . . . . . . . . . . Power Chain Reactions 2 | . . . . . . . . . . . . . . . . . . 2 . . . . Alert | -11 -10 -10 -8 -8 -6 -6 -6 -6 -6 -6 -5 -5 -5 -5 -5 -5 -5 -5 -4 -4 -4 -4 ------- Run | Yrd Mat Sub Rec Scr Fac Was Fac Low Low Zio Pro Fac Was Fac Ext Cet Arc Hub Fac Was Fac Upp Maximum Alert Level 4 | . . . . . . . 4 . . . . . . 1 3 2 . 1 . . 1 . Low Security (%) 82 | 100 100 . 100 . 100 100 29 . . . . 100 100 98 67 . 100 90 100 100 44 . Level 1 8 | . . . . . . . 3 . . . . . . 1 18 21 . 9 . . 55 . Level 2 4 | . . . . . . . 20 . . . . . . . 11 78 . . . . . . Level 3 3 | . . . . . . . 33 . . . . . . . 3 . . . . . . . Level 4 1 | . . . . . . . 12 . . . . . . . . . . . . . . . Level 5 . | . . . . . . . . . . . . . . . . . . . . . . . High Security . | . . . . . . . . . . . . . . . . . . . . . . . Max Security . | . . . . . . . . . . . . . . . . . . . . . . . Peak Influence 1149 | 5 144 . 75 . 103 15 1149 . . . . 2 34 200 796 470 176 290 137 1 332 . Initial 390 | . . . 65 . . 7 . . . . . . . . 46 390 176 51 137 1 . . Average 125 | . 33 . 13 . 27 . 564 . . . . . 1 65 214 418 165 84 37 . 202 . Influence Increases 7515 | 5 335 320 196 . 256 50 1878 81 119 . 48 8 46 629 1402 170 . 439 378 . 980 175 Destroy 0b10 Robot/C 3200 | . 180 240 80 . 160 . 680 60 80 . 20 . . 140 680 160 . 60 100 . 500 60 Destroy 0b10 Robot/NC 320 | 5 30 . . . 5 . 65 . 15 . 10 . . 40 35 10 . 20 55 . 30 . Destroy Leader 550 | . 40 20 . . 30 . 144 10 10 . . . . 60 106 . . 14 44 . 62 10 Allied During Kill 1044 | . . . . . . . 552 11 14 . 3 . . . 384 . . . . . 80 . Successful Hack 198 | . 23 . 24 . 8 . 61 . . . . . . 44 5 . . 5 20 . 8 . Select Force Hacks 90 | . . . 90 . . . . . . . . . . . . . . . . . . . Disable Machine 405 | . 30 . . . . . 240 . . . . . . . 60 . . 45 15 . 15 . Anti-Garrison Action 200 | . . . . . . . . . . . . . . 200 . . . . . . . . Destroy Structure 548 | . 17 . 2 . 8 50 91 . . . . 8 46 70 102 . . 40 24 . 90 . Partial Spotted 150 | . . . . . . . 45 . . . . . . 15 30 . . . 45 . 15 . Lose Combat Pursuer 810 | . 15 60 . . 45 . . . . . 15 . . 60 . . . 255 75 . 180 105 Influence Decreases 7194 | 5 335 183 333 . 236 70 729 688 342 319 48 8 46 532 801 428 294 305 655 3 700 134 Entered New Map 1901 | . . . 72 . . 13 . 426 104 319 . . . . 51 308 264 95 143 2 . 104 Time Decay 3863 | 5 315 163 261 . 156 26 367 262 238 . 48 8 16 455 410 110 30 140 420 1 402 30 Lost Part 486 | . 20 20 . . 60 . . . . . . . . . 30 10 . 70 92 . 184 . Lost Ally 717 | . . . . . 20 31 212 . . . . . 30 . 310 . . . . . 114 . Purge Threat 227 | . . . . . . . 150 . . . . . . 77 . . . . . . . . Squads Dispatched 50 | . . . . . 4 . 7 . . . . . . 12 8 . . 6 6 . 7 . Investigation 18 | . . . . . 1 . 3 . . . . . . 7 2 . . 1 1 . 3 . Extermination 13 | . . . . . 1 . 2 . . . . . . 3 . . . 1 3 . 3 . Reinforcement 13 | . . . . . 1 . 1 . . . . . . 1 4 . . 4 1 . 1 . Assault 3 | . . . . . . . 1 . . . . . . . 2 . . . . . . . Garrison 3 | . . . . . 1 . . . . . . . . 1 . . . . 1 . . . Intercept . | . . . . . . . . . . . . . . . . . . . . . . . Searches Triggered . | . . . . . . . . . . . . . . . . . . . . . . . Construction Impeded 3 | . . . . . . . . . . . . . . . 2 . . . . . 1 . Haulers Reinforced 2 | . . . . . . . 1 . . . . . . . . . . . 1 . . . Active Scanning Responses . | . . . . . . . . . . . . . . . . . . . . . . . Cargo Convoy Interrupts . | . . . . . . . . . . . . . . . . . . . . . . . Stealth | -11 -10 -10 -8 -8 -6 -6 -6 -6 -6 -6 -5 -5 -5 -5 -5 -5 -5 -5 -4 -4 -4 -4 --------- Run | Yrd Mat Sub Rec Scr Fac Was Fac Low Low Zio Pro Fac Was Fac Ext Cet Arc Hub Fac Was Fac Upp Distress Signals 11 | . . . . . . . 2 . . . . . . 2 2 . . 2 1 . 2 . Communications Jammed . | . . . . . . . . . . . . . . . . . . . . . . . Distress Signals . | . . . . . . . . . . . . . . . . . . . . . . . Times Spotted 303 | . 17 24 1 . 13 8 35 3 4 . 7 1 6 26 35 7 . 34 23 6 41 12 Peak Tracking Total 21 | . 3 6 . . 5 6 5 3 4 . 4 1 5 7 10 4 . 21 11 4 12 6 Tactical Retreats 25 | . 1 2 . . 2 3 . . . . 1 . . 1 . . . 5 4 . 4 2 Traps | -11 -10 -10 -8 -8 -6 -6 -6 -6 -6 -6 -5 -5 -5 -5 -5 -5 -5 -5 -4 -4 -4 -4 ------- Run | Yrd Mat Sub Rec Scr Fac Was Fac Low Low Zio Pro Fac Was Fac Ext Cet Arc Hub Fac Was Fac Upp Traps Triggered 16 | . 2 2 . . 2 . 1 . . . . 1 . 3 2 . . 1 1 . 1 . Indirectly 1 | . . . . . . . . . . . . . . . . . . 1 . . . . Trap Hack Attempts . | . . . . . . . . . . . . . . . . . . . . . . . Triggered . | . . . . . . . . . . . . . . . . . . . . . . . Disarmed . | . . . . . . . . . . . . . . . . . . . . . . . Reprogrammed . | . . . . . . . . . . . . . . . . . . . . . . . Reused . | . . . . . . . . . . . . . . . . . . . . . . . Traps Extracted . | . . . . . . . . . . . . . . . . . . . . . . . Installed 1 | . . 1 . . . . . . . . . . . . . . . . . . . . Triggered . | . . . . . . . . . . . . . . . . . . . . . . . Most Traps Carried 3 | . . 1 1 1 1 1 . . 3 . . . . . . . . . . . . . Machines | -11 -10 -10 -8 -8 -6 -6 -6 -6 -6 -6 -5 -5 -5 -5 -5 -5 -5 -5 -4 -4 -4 -4 ---------- Run | Yrd Mat Sub Rec Scr Fac Was Fac Low Low Zio Pro Fac Was Fac Ext Cet Arc Hub Fac Was Fac Upp Machines Disabled 31 | . 2 4 . . . . 16 . . . . . . . 4 . . 3 1 . 1 . Max in Single Turn 2 | . 1 2 . . . . 1 . . . . . . . 1 . . 1 1 . . . Garrison Access 4 | . . . . . . . 1 . . . . . . 1 . . . . 1 . 1 . Network Hub 1 | . . . . . . . . . . . . . . . . . . 1 . . . . Energy Cycler 1 | . . . . . . . . . . . . . . . 1 . . . . . . . Machines Repaired . | . . . . . . . . . . . . . . . . . . . . . . . Machines Dismantled 2 | . . . . . . . . . . . . . . . 1 . . 1 . . . . Machines Sabotaged . | . . . . . . . . . . . . . . . . . . . . . . . Overloaded Fab Kills . | . . . . . . . . . . . . . . . . . . . . . . . Hacking | -11 -10 -10 -8 -8 -6 -6 -6 -6 -6 -6 -5 -5 -5 -5 -5 -5 -5 -5 -4 -4 -4 -4 --------- Run | Yrd Mat Sub Rec Scr Fac Was Fac Low Low Zio Pro Fac Was Fac Ext Cet Arc Hub Fac Was Fac Upp Machines Accessed 76 | . 9 2 11 5 4 . 16 . 1 . . . . 11 3 . 1 1 7 . 5 . Terminals 38 | . 8 . 6 . 2 . 10 . . . . . . 2 2 . . 1 5 . 2 . Fabricators 4 | . . . . . . . 3 . . . . . . 1 . . . . . . . . Repair Stations 6 | . 1 . . . 1 . 2 . . . . . . 2 . . . . . . . . Recycling Units 12 | . . . 5 . 1 . . . . . . . . 3 1 . . . 1 . 1 . Scanalyzers 3 | . . . . . . . . . . . . . . 2 . . . . . . 1 . Garrison Access 4 | . . . . . . . 1 . . . . . . 1 . . . . 1 . 1 . Total Hacks 244 | . 23 4 37 16 15 . 50 . 1 . . . . 38 8 . 5 5 28 . 14 . Successful 131 | . 13 4 17 16 8 . 25 . 1 . . . . 19 4 . 5 2 11 . 6 . Failed 111 | . 10 . 19 . 7 . 25 . . . . . . 19 4 . . 3 17 . 7 . Catastrophic 20 | . 2 . 3 . . . 3 . . . . . . 4 2 . . . 4 . 2 . Database Lockouts 2 | . . . 1 . . . . . . . . . . . . . . . . . 1 . Manual 120 | . 21 . 28 . 8 . 17 . . . . . . 14 4 . . 5 14 . 9 . Terminals 145 | . 21 . 23 . 7 . 37 . . . . . . 15 6 . . 5 22 . 9 . Fabricators 9 | . . . . . . . 7 . . . . . . 2 . . . . . . . . Repair Stations 17 | . 2 . . . 4 . 5 . . . . . . 6 . . . . . . . . Recycling Units 33 | . . . 14 . 4 . . . . . . . . 7 2 . . . 4 . 2 . Scanalyzers 8 | . . . . . . . . . . . . . . 6 . . . . . . 2 . Garrison Access 6 | . . . . . . . 1 . . . . . . 2 . . . . 2 . 1 . Terminal Hacks 61 | . 5 4 3 16 . . 12 . 1 . . . . 6 2 . 5 . 5 . 2 . Record 23 | . . 3 . 15 . . . . . . . . . . . . 5 . . . . . Part Schematic 4 | . . . 1 . . . 3 . . . . . . . . . . . . . . . Robot Schematic 1 | . 1 . . . . . . . . . . . . . . . . . . . . . Robot Analysis 5 | . 3 . 2 . . . . . . . . . . . . . . . . . . . Open Door 4 | . . . . 1 . . . . 1 . . . . 1 1 . . . . . . . Level Access Points 1 | . . . . . . . 1 . . . . . . . . . . . . . . . Branch Access Points 2 | . . . . . . . 1 . . . . . . . . . . . . . 1 . Terminal Index 1 | . . . . . . . 1 . . . . . . . . . . . . . . . Fabricator Index 1 | . . . . . . . . . . . . . . 1 . . . . . . . . Alert Level 4 | . . . . . . . 1 . . . . . . . . . . . 2 . 1 . Unreport Threat 2 | . . . . . . . 1 . . . . . . 1 . . . . . . . . Locate Traps 3 | . . . . . . . . . . . . . . 2 1 . . . . . . . Recall Investigation 1 | . . . . . . . . . . . . . . . . . . . 1 . . . Recall Extermination 1 | . . . . . . . 1 . . . . . . . . . . . . . . . Hauler Manifests 1 | . . . . . . . 1 . . . . . . . . . . . . . . . Registered Components 3 | . 1 . . . . . 1 . . . . . . . . . . . 1 . . . Registered Prototypes 2 | . . . . . . . 1 . . . . . . . . . . . 1 . . . Zone Layout 1 | . . . . . . . . . . . . . . 1 . . . . . . . . Proto ID Catalog 1 | . . 1 . . . . . . . . . . . . . . . . . . . . Fabricator Hacks 3 | . . . . . . . 3 . . . . . . . . . . . . . . . Network Status 1 | . . . . . . . 1 . . . . . . . . . . . . . . . Load Schematic 1 | . . . . . . . 1 . . . . . . . . . . . . . . . Build 1 | . . . . . . . 1 . . . . . . . . . . . . . . . Repair Station Hacks 12 | . 1 . . . 2 . 5 . . . . . . 4 . . . . . . . . Scan Component 8 | . . . . . 1 . 4 . . . . . . 3 . . . . . . . . Repair 3 | . . . . . 1 . 1 . . . . . . 1 . . . . . . . . Refit 1 | . 1 . . . . . . . . . . . . . . . . . . . . . Recycling Unit Hacks 9 | . . . 3 . 1 . . . . . . . . 2 1 . . . 1 . 1 . Retrieve Components 9 | . . . 3 . 1 . . . . . . . . 2 1 . . . 1 . 1 . Scanalyzer 5 | . . . . . . . . . . . . . . 4 . . . . . . 1 . Insert Component 1 | . . . . . . . . . . . . . . 1 . . . . . . . . Analyze 1 | . . . . . . . . . . . . . . 1 . . . . . . . . Retrieve Study 3 | . . . . . . . . . . . . . . 2 . . . . . . 1 . Garrison Access Hacks 3 | . . . . . . . 1 . . . . . . . . . . . 1 . 1 . Seal Access 3 | . . . . . . . 1 . . . . . . . . . . . 1 . 1 . Unauthorized Hacks 38 | . 7 . 11 . 5 . 4 . . . . . . 3 1 . . 2 4 . 1 . Terminals 26 | . 7 . 8 . 4 . 2 . . . . . . . . . . 2 3 . . . Botnet 11 | . 1 . 3 . 1 . 2 . . . . . . . . . . 1 3 . . . Operators 3 | . 1 . . . 1 . . . . . . . . . . . . 1 . . . . Skim 12 | . 5 . 5 . 2 . . . . . . . . . . . . . . . . . Fabricators 2 | . . . . . . . 2 . . . . . . . . . . . . . . . Prioritize 1 | . . . . . . . 1 . . . . . . . . . . . . . . . Liberate 1 | . . . . . . . 1 . . . . . . . . . . . . . . . Repair Stations . | . . . . . . . . . . . . . . . . . . . . . . . Recycling Units 9 | . . . 3 . 1 . . . . . . . . 2 1 . . . 1 . 1 . Tunnel 3 | . . . 3 . . . . . . . . . . . . . . . . . . . Fedlink 4 | . . . . . 1 . . . . . . . . 2 . . . . 1 . . . Scrapoids 2 | . . . . . . . . . . . . . . . 1 . . . . . 1 . Scanalyzers . | . . . . . . . . . . . . . . . . . . . . . . . Garrison Access 1 | . . . . . . . . . . . . . . 1 . . . . . . . . Jam 1 | . . . . . . . . . . . . . . 1 . . . . . . . . Data Cores Recovered 6 | . 1 . . . . . 3 . . . . . . . 1 . . . . . 1 . Used 3 | . 1 . . . . . 2 . . . . . . . . . . . . . . . Hacking Detections 58 | . 8 . 10 . 4 . 14 . . . . . . 10 3 . . 1 6 . 2 . Full Trace Events 13 | . . . 4 . . . 3 . . . . . . 4 1 . . . . . 1 . Feedback Events 1 | . . . . . . . . . . . . . . 1 . . . . . . . . Corruption 1 | . . . . . . . . . . . . . . 1 . . . . . . . . Feedback Blocked . | . . . . . . . . . . . . . . . . . . . . . . . Robot Schematics Acquired 5 | . 1 . . . . . . . . 4 . . . . . . . . . . . . Robots Built . | . . . . . . . . . . . . . . . . . . . . . . . Authchips . | . . . . . . . . . . . . . . . . . . . . . . . Time . | . . . . . . . . . . . . . . . . . . . . . . . Total Robot Build Rating . | . . . . . . . . . . . . . . . . . . . . . . . Part Schematics Acquired 19 | . . . 1 . . . 3 . . 14 . . . 1 . . . . . . . . Parts Built 2 | . . . . . . . 2 . . . . . . . . . . . . . . . Authchips . | . . . . . . . . . . . . . . . . . . . . . . . Time 58 | . . . . . . . 58 . . . . . . . . . . . . . . . Total Part Build Rating 14 | . . . . . . . 14 . . . . . . . . . . . . . . . Part Studies Acquired 3 | . . . . . . . . . . . . . . 2 . . . . . . 1 . Parts Repaired 3 | . . . . . 1 . 1 . . . . . . 1 . . . . . . . . Time 135 | . . . . . 22 . 18 . . . . . . 95 . . . . . . . . Parts Recycled . | . . . . . . . . . . . . . . . . . . . . . . . Recycled Matter . | . . . . . . . . . . . . . . . . . . . . . . . Retrieved Matter . | . . . . . . . . . . . . . . . . . . . . . . . Retrieved Components 15 | . . . 1 . . . . . . . . . . . 9 . . . 2 . 3 . Parts Scanalyzed 1 | . . . . . . . . . . . . . . 1 . . . . . . . . Part Schematics Acquired 1 | . . . . . . . . . . . . . . 1 . . . . . . . . Parts Damaged . | . . . . . . . . . . . . . . . . . . . . . . . Bothacking | -11 -10 -10 -8 -8 -6 -6 -6 -6 -6 -6 -5 -5 -5 -5 -5 -5 -5 -5 -4 -4 -4 -4 ------------ Run | Yrd Mat Sub Rec Scr Fac Was Fac Low Low Zio Pro Fac Was Fac Ext Cet Arc Hub Fac Was Fac Upp Used RIF Installer . | . . . . . . . . . . . . . . . . . . . . . . . Robots Hacked . | . . . . . . . . . . . . . . . . . . . . . . . Non-combat . | . . . . . . . . . . . . . . . . . . . . . . . Combat . | . . . . . . . . . . . . . . . . . . . . . . . Robot Hacks Applied . | . . . . . . . . . . . . . . . . . . . . . . . Relay Couplers Released 1 | . . . . . . . 1 . . . . . . . . . . . . . . . Machine Destruction 1 | . . . . . . . 1 . . . . . . . . . . . . . . . Fabnet Peak Effective % . | . . . . . . . . . . . . . . . . . . . . . . . Robots Rewired 11 | . . . . . 1 . . . . . . . . . 9 . . . . . 1 . Allies Hacked . | . . . . . . . . . . . . . . . . . . . . . . . Hacks Repelled 1 | . . . . . . . 1 . . . . . . . . . . . . . . . Allies | -11 -10 -10 -8 -8 -6 -6 -6 -6 -6 -6 -5 -5 -5 -5 -5 -5 -5 -5 -4 -4 -4 -4 -------- Run | Yrd Mat Sub Rec Scr Fac Was Fac Low Low Zio Pro Fac Was Fac Ext Cet Arc Hub Fac Was Fac Upp Total Allies 62 | . . . . . 1 19 . . . . . . 18 . 18 . . . . . 6 . Largest Group 19 | . . . . . 1 19 15 3 3 3 3 . 18 . 13 . . . . . 4 . Highest-Rated Group 684 | . . . . . 47 684 559 100 100 100 94 . 656 . 403 . . . . . 188 . Highest-Rated Ally 52 | . . . . . 47 50 50 46 46 46 46 . 50 . 50 . . . . . 52 . Total Orders 13 | . . . . . . . . . . . . 1 . 9 2 . . . . . 1 . EXPLORE 1 | . . . . . . . . . . . . . . . . . . . . . 1 . RETURN 12 | . . . . . . . . . . . . 1 . 9 2 . . . . . . . Ally Attacks 708 | . . . . . 2 147 172 10 . . 7 . 118 . 167 . . . . . 85 . Total Damage 20238 | . . . . . 78 4541 5506 112 . . 164 . 4516 . 3115 . . . . . 2206 . Kills 96 | . . . . . . 8 36 2 . . 2 . 11 . 24 . . . . . 13 . Allies Corrupted . | . . . . . . . . . . . . . . . . . . . . . . . Allies Melted 3 | . . . . . . . 1 . . . 1 . . . 1 . . . . . . . Intel | -11 -10 -10 -8 -8 -6 -6 -6 -6 -6 -6 -5 -5 -5 -5 -5 -5 -5 -5 -4 -4 -4 -4 ------- Run | Yrd Mat Sub Rec Scr Fac Was Fac Low Low Zio Pro Fac Was Fac Ext Cet Arc Hub Fac Was Fac Upp Active Infowar (turns) 14741 | 7 918 4993 207 . 531 339 897 570 504 520 425 74 209 1672 981 227 61 296 1310 . . . Optics 7824 | . . . . . . 141 897 570 490 520 425 74 209 1672 981 227 61 296 1261 . . . Sensors 13725 | . 108 4975 207 . 531 339 728 565 498 520 425 74 209 1672 981 227 61 296 1309 . . . Seismic 835 | 7 810 18 . . . . . . . . . . . . . . . . . . . . Decoding 2869 | . . . . . . . . . 1 395 425 74 209 1672 93 . . . . . . . ECM 1 | . . . . . . . . . . . 1 . . . . . . . . . . . Robot Analysis Total 5 | . 3 . 2 . . . . . . . . . . . . . . . . . . . Derelict Logs Recovered 14 | . . 2 . 5 . . . 1 2 1 2 . . . . . . . . . . 1 Drone Launches 18 | . . . . . . . . . . . . 1 . 9 2 . . . . . 6 . Drone Recoveries 14 | . . . . . . . . . . . . 1 . 9 2 . . . . . 2 . Decoded 0b10 Intel 38 | . . . . . . . . . . . . 1 . 34 3 . . . . . . . Traps 35 | . . . . . . . . . . . . 1 . 33 1 . . . . . . . Emergency Access 2 | . . . . . . . . . . . . . . . 2 . . . . . . . Garrisons 1 | . . . . . . . . . . . . . . 1 . . . . . . . . Exploration | -11 -10 -10 -8 -8 -6 -6 -6 -6 -6 -6 -5 -5 -5 -5 -5 -5 -5 -5 -4 -4 -4 -4 ------------- Run | Yrd Mat Sub Rec Scr Fac Was Fac Low Low Zio Pro Fac Was Fac Ext Cet Arc Hub Fac Was Fac Upp Turns Passed 19885 | 65 999 5890 1183 1712 614 394 897 570 504 520 425 74 209 1672 981 227 61 296 1349 154 1022 67 Spaces Moved 18512 | 37 676 3479 733 1147 403 431 1189 1080 961 932 514 101 349 2280 854 237 51 323 1430 227 909 169 Core 2 | 2 . . . . . . . . . . . . . . . . . . . . . . Treads . | . . . . . . . . . . . . . . . . . . . . . . . Legs 99 | . . . . . . . . . . . . . . . . . . . . . 99 . Wheels 6802 | 35 676 3479 733 1147 403 78 . . . . . . . . . . . . . . 251 . Hover 10976 | . . . . . . 353 1189 1080 961 932 514 101 349 2280 854 237 51 323 1430 227 95 . Flight 633 | . . . . . . . . . . . . . . . . . . . . . 464 169 Fastest Speed 27 | 50 100 135 150 135 108 42 42 42 42 42 45 40 40 27 27 40 40 31 46 46 28 34 Average Speed 79 | 97 116 149 150 141 113 61 42 42 42 42 45 40 40 39 39 43 40 39 53 46 72 34 Slowest Speed 330 | 100 145 150 150 150 150 108 101 102 42 45 45 40 40 40 40 92 40 110 106 46 330 34 Overloaded Moves 143 | . . . . . . . . . . . . . . 40 18 . . 85 . . . . Propulsion Burnouts . | . . . . . . . . . . . . . . . . . . . . . . . Robots Hopped 1 | . . . . . . . . . . . . . 1 . . . . . . . . . Potential Cave-ins 4 | . . . . . . . . . . . . . . . . . . . 4 . . . Cave-ins Triggered . | . . . . . . . . . . . . . . . . . . . . . . . Exploration Rate (%) 63 | 5 95 96 99 88 11 96 27 96 95 86 62 5 96 54 88 70 77 31 37 98 18 25 Regions Visited 22 Branch Regions 12 Pre-discovered Areas 12 | . 2 . 3 2 . . . . 1 2 . . . 1 . . . . . . . 1 Known Exits Taken 11 | . . . . . . . 1 1 1 1 1 . . 1 1 1 1 1 . . 1 . Unknown Exits Taken 5 | 1 1 1 1 1 . . . . . . . . . . . . . . . . . . Scrap Searched 30 | . . 18 . 6 . . . 1 3 . 2 . . . . . . . . . . . Spaces Dug 125 | . . 7 . . . . 5 . 9 . 36 4 . 35 . . . 6 14 . 9 . Terrain Destroyed 317 | . 16 73 2 . 13 . 5 33 19 . 47 4 . 35 20 . . 19 14 . 15 2 Melee 69 | . . . . . . . 5 . . . . 4 . 35 . . . 6 10 . 9 . Projectile 28 | . . 14 2 . . . . . . . . . . . . . . . 4 . 6 2 AOE 220 | . 16 59 . . 13 . . 33 19 . 47 . . . 20 . . 13 . . . . Terrain Rammed . | . . . . . . . . . . . . . . . . . . . . . . . Walls Destroyed . | . . . . . . . . . . . . . . . . . . . . . . . Machines Disabled . | . . . . . . . . . . . . . . . . . . . . . . . Actions | -11 -10 -10 -8 -8 -6 -6 -6 -6 -6 -6 -5 -5 -5 -5 -5 -5 -5 -5 -4 -4 -4 -4 --------- Run | Yrd Mat Sub Rec Scr Fac Was Fac Low Low Zio Pro Fac Was Fac Ext Cet Arc Hub Fac Was Fac Upp Total 22739 | 58 807 4009 805 1241 521 560 1498 1182 1050 1056 689 128 417 2913 1414 319 90 469 1914 253 1174 172 Wait 2821 | 10 43 335 59 59 55 97 185 84 69 114 151 14 60 456 406 32 40 125 357 1 69 . Move 18492 | 36 675 3478 732 1146 403 430 1188 1079 960 931 513 101 346 2279 853 236 50 323 1430 226 908 169 Hop 1 | . . . . . . . . . . . . . 1 . . . . . . . . . Pick Up 134 | 3 15 27 5 14 10 9 13 1 2 1 . 2 3 7 1 4 . . 9 1 7 . Fast Attach 147 | 7 9 . . 3 4 5 16 2 2 3 2 1 2 16 4 3 . 3 19 1 45 . Attach 56 | . 1 7 1 1 11 6 . 1 . . . 2 1 1 2 1 . 1 11 1 8 . Detach 14 | . 2 . . . 1 1 . . . . . . . . 1 . . . 3 . 6 . Swap 145 | . 11 44 1 2 5 3 5 4 4 3 4 2 . 22 17 3 . 1 7 1 6 . Drop 186 | . 12 23 1 16 2 9 23 4 4 3 3 2 4 23 4 2 . 1 16 . 34 . Fire 293 | 2 38 94 6 . 2 . . 5 2 . 3 . . . 19 38 . 4 7 22 48 3 Melee 315 | . 1 . . . 23 . 55 2 6 1 12 4 . 84 33 . . 8 55 . 31 . Ram . | . . . . . . . . . . . . . . . . . . . . . . . Kick . | . . . . . . . . . . . . . . . . . . . . . . . Crush . | . . . . . . . . . . . . . . . . . . . . . . . Escape Stasis 39 | . . . . . . . 13 . . . . . . 13 13 . . . . . . . Rewire 81 | . . . . . 5 . . . 1 . . . . 12 53 . . . . . 10 . Trap 1 | . . 1 . . . . . . . . . . . . . . . . . . . . Miscellaneous 14 | . . . . . . . . . . . 1 . . . 8 . . 3 . . 2 . Route ------- -11/Scrapyard -10/Materials (discovered 6 exits: [*Mat x3] / [*Min x2] / *Sub) -10/Subcaves (discovered 4 exits: [*Mat x2] / *Rec / *Scr) -8/Recycling (discovered 2 exits: *Fac / *Scr) -8/Scraptown (discovered 2 exits: *Fac x2) -6/Factory (discovered 2 exits: *Low x2) -6/Waste -6/Factory (discovered 6 exits: *Fac x4 / *Low x2) -6/Lower Caves -6/Lower Caves (discovered 2 exits: *Fac / *Zio) -6/Zion (discovered 2 exits: Dee / *Pro) -5/Proximity Caves -5/Factory -5/Waste -5/Factory (discovered 8 exits: *Fac x4 / *Upp x2 / *Ext x2) -5/Extension (discovered 3 exits: *Fac x2 / *Cet) -5/Cetus (discovered 2 exits: *Fac / *Arc) -5/Archives (discovered 2 exits: *Hub x2) -5/Hub_04(d) (discovered 2 exits: *Fac x2) -4/Factory (discovered 4 exits: *Res / *Upp x2 / *Arm) -4/Waste -4/Factory (discovered 4 exits: *Res / *Upp x2 / Arm) -4/Upper Caves History --------- Turn | Location | Event 23 | -11/Scrapyard | Discovered new exit (range 15) 66 | -11/Scrapyard | Entered Materials 279 | -10/Materials | Discovered new exit (range 15) 336 | -10/Materials | Build established: Mutant 513 | -10/Materials | Discovered new exit (range 4) 617 | -10/Materials | Discovered new exit (range 14) 809 | -10/Materials | Discovered new exit (range 16) 832 | -10/Materials | Learned 2 Mines zone layouts 909 | -10/Materials | Discovered new exit (range 16) 914 | -10/Materials | Learned location of Mines (-10) 1008 | -10/Materials | Discovered new exit (range 9) 1046 | -10/Materials | Learned location of Recycling (-8) 1065 | -10/Materials | Entered Subcaves 1066 | -10/Subcaves | Approached by a straggling Scientist 1072 | -10/Subcaves | Shifting Twisted Machinery released Mak. Light Armor Plating 1198 | -10/Subcaves | Shifting Twisted Machinery released Flamer 1299 | -10/Subcaves | Scientist uncovered a shortcut to Scraptown 1462 | -10/Subcaves | A swath of the cavern ceiling suddenly collapsed 1584 | -10/Subcaves | Disturbed a concealed Subdweller 1626 | -10/Subcaves | Disturbed a concealed Subdweller 2079 | -10/Subcaves | Visited 4L-MR0's lab 2160 | -10/Subcaves | Found Tower Shield 2516 | -10/Subcaves | Shifting Twisted Machinery released Sub. Shrapnel Launcher 2516 | -10/Subcaves | Shifting Twisted Machinery released Sub. Monowheel 2965 | -10/Subcaves | A swath of the cavern ceiling suddenly collapsed 3043 | -10/Subcaves | Core integrity fell below 50% 3083 | -10/Subcaves | Discovered new exit (range 13) 3115 | -10/Subcaves | Shifting Twisted Machinery released Battle Rifle 3118 | -10/Subcaves | Shifting Twisted Machinery released Sub. Machine Gun 3160 | -10/Subcaves | Learned 4 Materials zone layouts 3480 | -10/Subcaves | Disturbed a concealed Subdweller 4713 | -10/Subcaves | Discovered new exit (range 12) 5130 | -10/Subcaves | Visited Clippyterm 5135 | -10/Subcaves | Learned Research machine intel 5551 | -10/Subcaves | Discovered new exit (range 12) 6955 | -10/Subcaves | Entered Recycling 7545 | -8/Recycling | Discovered new exit (range 16) 8099 | -8/Recycling | Scanned before Scraplab entrance 8120 | -8/Recycling | Entered Scraplab 8132 | -8/Recycling | Discovered new exit (range 4) 8138 | -8/Recycling | Entered Scraptown 8447 | -8/Scraptown | Scanned Subdweller tech in exchange for log data 8451 | -8/Scraptown | Learned Research trap positions 8453 | -8/Scraptown | Learned location of Quarantine (-2) 8456 | -8/Scraptown | Learned Factory stockpile data 8480 | -8/Scraptown | Discovered new exit (range 11) 8615 | -8/Scraptown | Visited UFD Registry 8615 | -8/Scraptown | Registered with UFD as "Pulsewarp" 8636 | -8/Scraptown | Visited Scrapoid Research Area 8671 | -8/Scraptown | Visited Junk Repository 8720 | -8/Scraptown | Visited Red Mages 8752 | -8/Scraptown | Visited IN-MT5's Study 8794 | -8/Scraptown | Visited Cyclists 8803 | -8/Scraptown | Entered Cyclist Reading Room 8851 | -8/Scraptown | Learned location of Extension (-5) 9029 | -8/Scraptown | Visited Fellowship of the Rings 9069 | -8/Scraptown | Visited Assassins FH 9110 | -8/Scraptown | Visited Sword Containment 9123 | -8/Scraptown | Found Prototype Slashing Weapon 9123 | -8/Scraptown | Identified Companion Sword 9161 | -8/Scraptown | Visited Scrap Suit Storage 9187 | -8/Scraptown | Visited Abandonware Association 9205 | -8/Scraptown | Learned abandonware demo "ERRANTS.EXE" 9205 | -8/Scraptown | Learned abandonware demo "MELTYB.EXE" 9257 | -8/Scraptown | Delivered Scrap Shield to a Scientist 9379 | -8/Scraptown | Visited Science Testing Area 9403 | -8/Scraptown | Visited Supply Room 9447 | -8/Scraptown | Visited Derelict Rescue Squad 9455 | -8/Scraptown | Found DRS Beacon 9476 | -8/Scraptown | Visited Chapter 10 9524 | -8/Scraptown | Visited Observation Area 9554 | -8/Scraptown | Visited LU-1G1's Boring Crew 9578 | -8/Scraptown | Visited Junk Repository 9780 | -8/Scraptown | Met Optimus 9780 | -8/Scraptown | Accepted into 0bPrime 9843 | -8/Scraptown | Discovered new exit (range 5) 9850 | -8/Scraptown | Entered Factory 9850 | -6/Factory | Evolved 8 slots: Propulsion x2, Utility x6 9851 | -6/Factory | Identified exit to Lower Caves 9856 | -6/Factory | Attached Tower Shield, gained temporary slots: Power, Propulsion x2, Utility x2, Weapon x2 10149 | -6/Factory | Repaired Arm. Huge Wheel 10170 | -6/Factory | Build established: Hacker-Mutant 10261 | -6/Factory | Loaded intel: 8 recycling unit locations 10321 | -6/Factory | Discovered exit to Lower Caves (range 16) 10410 | -6/Factory | Garrison activated, responded to threat 10464 | -6/Factory | Sucked down chute 10464 | -6/Factory | Entered Waste 10493 | -6/Waste | Lost 6 parts (1p1n3u1w) 10495 | -6/Waste | Spotted C-40 Crusher 10529 | -6/Waste | Spotted C-40 Crusher 10530 | -6/Waste | Spotted C-40 Crusher 10537 | -6/Waste | Spotted C-40 Crusher 10541 | -6/Waste | Crushed by Compactor (1 part destroyed) 10591 | -6/Waste | Spotted C-40 Crusher 10615 | -6/Waste | Spotted C-40 Crusher 10642 | -6/Waste | Discovered new exit (range 13) 10662 | -6/Waste | Warlord forces began an assault 10675 | -6/Waste | Allies destroyed C-40 Crusher 10680 | -6/Waste | Allies destroyed C-40 Crusher 10683 | -6/Waste | Allies destroyed C-40 Crusher 10686 | -6/Waste | Allies destroyed C-40 Crusher 10703 | -6/Waste | Allies destroyed C-40 Crusher 10724 | -6/Waste | Lost 4 allies 10817 | -6/Waste | Identified exit to Factory 10858 | -6/Waste | Entered Factory 10858 | -6/Factory | Accompanied by 15 allies 10994 | -6/Factory | Identified exit to Factory 11004 | -6/Factory | Build established: Hacker-Scout 11188 | -6/Factory | Lost 4 allies 11195 | -6/Factory | Repaired Linear Gravjet 11208 | -6/Factory | First assault squad dispatched 11554 | -6/Factory | Fabricated Adv. Reaction Control System (x2) 11755 | -6/Factory | Entered Lower Caves 11755 | -6/Lower Caves | Accompanied by 3 allies 11757 | -6/Lower Caves | UFD Scientist delivered a prototype 11763 | -6/Lower Caves | Found Prototype Protection 11763 | -6/Lower Caves | Identified Enh. Scrap Shield 11794 | -6/Lower Caves | Learned 12 Factory zone layouts 11979 | -6/Lower Caves | Encountered a Warlord checkpoint 12289 | -6/Lower Caves | Discovered new exit (range 5) 12291 | -6/Lower Caves | Identified exit to Lower Caves 12325 | -6/Lower Caves | Entered another Lower Caves area 12325 | -6/Lower Caves | Accompanied by 3 allies 12334 | -6/Lower Caves | Discovered exit to Factory (range 14) 12480 | -6/Lower Caves | Learned Factory garrison access intel 12633 | -6/Lower Caves | Discovered new exit (range 7) 12636 | -6/Lower Caves | Encountered a Warlord checkpoint 12641 | -6/Lower Caves | Identified exit to Zion 12829 | -6/Lower Caves | Entered Zion 12829 | -6/Zion | Accompanied by 3 allies 12844 | -6/Zion | System corruption cleaned by Quarantine Array 12852 | -6/Zion | Given the Hacking Drone Bay 12857 | -6/Zion | Discovered new exit (range 12) 12966 | -6/Zion | Learned Factory emergency access door positions 13132 | -6/Zion | Identified exit to Deep Caves 13165 | -6/Zion | Build established: Scout 13166 | -6/Zion | Turned away by Imprinter 13258 | -6/Zion | Found Prototype Device 13261 | -6/Zion | Identified Hacking Drone Bay 13271 | -6/Zion | Identified exit to Proximity Caves 13349 | -6/Zion | Entered Proximity Caves 13349 | -5/Proximity Caves | Accompanied by 3 allies 13351 | -5/Proximity Caves | Attracted the attention of an 0b10 checkpoint 13386 | -5/Proximity Caves | Learned Factory emergency access door positions 13530 | -5/Proximity Caves | Spotted B-75 Beast 13602 | -5/Proximity Caves | Activated DRS Beacon 13690 | -5/Proximity Caves | Learned Factory non-interactive machine intel 13741 | -5/Proximity Caves | Discovered exit to Factory (range 13) 13774 | -5/Proximity Caves | Entered Factory 13774 | -5/Factory | Evolved 2 slots: Propulsion x1, Utility x1 13775 | -5/Factory | Identified exit to Extension 13777 | -5/Factory | Loaded intel: 203 non-interactive machine locations 13778 | -5/Factory | Loaded intel: 4 garrison access locations 13848 | -5/Factory | Sucked down chute 13848 | -5/Factory | Entered Waste 13849 | -5/Waste | Spotted C-40 Crusher 13850 | -5/Waste | Spotted C-40 Crusher 13855 | -5/Waste | Spotted C-40 Crusher 13856 | -5/Waste | Spotted C-40 Crusher 13868 | -5/Waste | Spotted C-40 Crusher 13891 | -5/Waste | Warlord forces began an assault 13900 | -5/Waste | Allies destroyed C-40 Crusher 13906 | -5/Waste | Allies destroyed C-40 Crusher 13910 | -5/Waste | Allies destroyed C-40 Crusher 13913 | -5/Waste | Allies destroyed C-40 Crusher 13923 | -5/Waste | Allies destroyed C-40 Crusher 13946 | -5/Waste | Spotted C-40 Crusher 13950 | -5/Waste | Lost 7 allies 13964 | -5/Waste | Allies destroyed C-40 Crusher 14013 | -5/Waste | Discovered new exit (range 12) 14027 | -5/Waste | Found Prototype Processor 14027 | -5/Waste | Identified Exp. Terrain Scan Processor 14056 | -5/Waste | Identified exit to Factory 14057 | -5/Waste | Entered Factory 14200 | -5/Factory | Loaded intel: 8 recycling unit locations 14200 | -5/Factory | Learned location of Protoforge (-2) 14366 | -5/Factory | Identified exit to Upper Caves 14409 | -5/Factory | Identified exit to Factory 14440 | -5/Factory | Garrison activated, responded to threat 15308 | -5/Factory | Repaired Broken Antigrav Array? 15663 | -5/Factory | Spotted B-75 Beast 15729 | -5/Factory | Entered Extension 15870 | -5/Extension | Rescued a captive Derelict 15871 | -5/Extension | Rescued a captive Derelict 16012 | -5/Extension | Rescued a captive Derelict 16013 | -5/Extension | Rescued a captive Derelict 16125 | -5/Extension | Energy Cycler disabled 16126 | -5/Extension | Rescued a captive Derelict 16128 | -5/Extension | Rescued a captive Derelict 16130 | -5/Extension | Rescued a captive Derelict 16130 | -5/Extension | Rescued a captive Derelict 16135 | -5/Extension | Rescued a captive Derelict 16239 | -5/Extension | Build established: Commander-Scout 16350 | -5/Extension | Spotted B-75 Beast 16381 | -5/Extension | Destroyed B-75 Beast 16412 | -5/Extension | Extracted ID and sensor layout for unrecognized location from A7's data core 16487 | -5/Extension | Lost 4 allies 16608 | -5/Extension | Scrapoids reinforcements arrived? 16629 | -5/Extension | First assault squad dispatched 16706 | -5/Extension | Discovered new exit (range 9) 16709 | -5/Extension | Identified exit to Cetus 16710 | -5/Extension | Entered Cetus 16724 | -5/Cetus | Lost 10 allies 16733 | -5/Cetus | Spotted Cetus Guard 16734 | -5/Cetus | Spotted Cetus Guard 16739 | -5/Cetus | Spotted Cetus Guard 16743 | -5/Cetus | Spotted Cetus Guard 16747 | -5/Cetus | Destroyed Cetus Guard 16758 | -5/Cetus | Destroyed Cetus Guard 16766 | -5/Cetus | Destroyed Cetus Guard 16786 | -5/Cetus | Destroyed Cetus Guard 16838 | -5/Cetus | Discovered new exit (range 23) 16856 | -5/Cetus | Spotted Cetus Guard 16856 | -5/Cetus | Spotted Cetus Guard 16859 | -5/Cetus | Destroyed Cetus Guard 16861 | -5/Cetus | Spotted Cetus Guard 16862 | -5/Cetus | Spotted Cetus Guard 16883 | -5/Cetus | Destroyed Cetus Guard 16885 | -5/Cetus | Destroyed Cetus Guard 16887 | -5/Cetus | Destroyed Cetus Guard 16894 | -5/Cetus | Discovered exit to Factory (range 22) 16899 | -5/Cetus | Met Revision 17 16936 | -5/Cetus | Identified exit to Archives 16937 | -5/Cetus | Entered Archives 16943 | -5/Archives | Met Zhirov 16943 | -5/Archives | Discovered new exit (range 22) 16945 | -5/Archives | Discovered new exit (range 22) 16948 | -5/Archives | Read partially decrypted archive contents 16949 | -5/Archives | Reinforcements dispatched to Archives 16994 | -5/Archives | Reinforcements dispatched to Archives 16996 | -5/Archives | Zhirov warped through subspace 16997 | -5/Archives | Identified exit to Hub_04(d) 16998 | -5/Archives | Entered Hub_04(d) 17109 | -5/Hub_04(d) | Build established: Scavenger-Scout 17243 | -5/Hub_04(d) | Discovered exit to Factory (range 18) 17250 | -5/Hub_04(d) | Core integrity fell below 50% 17255 | -5/Hub_04(d) | Found Prototype Launcher 17255 | -5/Hub_04(d) | Identified Tesla Bomb Launcher 17274 | -5/Hub_04(d) | Network Hub disabled 17278 | -5/Hub_04(d) | Discovered exit to Factory (range 6) 17278 | -5/Hub_04(d) | Spotted Lightning 17278 | -5/Hub_04(d) | Spotted Lightning 17281 | -5/Hub_04(d) | Spotted Lightning 17294 | -5/Hub_04(d) | Entered Factory 17294 | -4/Factory | Evolved 2 slots: Propulsion x1, Weapon x1 17295 | -4/Factory | Identified exit to Armory 17325 | -4/Factory | Lost 7 parts (1p3n1u2w) 17487 | -4/Factory | Discovered new exit (range 13) 17492 | -4/Factory | Found Unknown Device 17492 | -4/Factory | Identified Quantum Capacitor 17529 | -4/Factory | Identified exit to Research 18212 | -4/Factory | Loaded intel: 8 recycling unit locations 18232 | -4/Factory | Discovered new exit (range 22) 18246 | -4/Factory | Identified exit to Upper Caves 18365 | -4/Factory | Garrison activated, responded to threat 18385 | -4/Factory | Discovered exit to Upper Caves (range 6) 18392 | -4/Factory | Spotted B-86 Titan 18601 | -4/Factory | Lost 6 parts (2n4u) 18643 | -4/Factory | Manually triggered Chute Trap 18643 | -4/Factory | Sucked down chute 18643 | -4/Factory | Entered Waste 18658 | -4/Waste | EMP discharged 18664 | -4/Waste | Spotted C-40 Crusher 18668 | -4/Waste | Lost 4 parts (1p1n2u) 18673 | -4/Waste | Destroyed C-40 Crusher 18702 | -4/Waste | Spotted C-40 Crusher 18706 | -4/Waste | Found Prototype Reactor 18716 | -4/Waste | Spotted C-40 Crusher 18721 | -4/Waste | Destroyed C-40 Crusher 18723 | -4/Waste | Spotted C-40 Crusher 18758 | -4/Waste | EMP discharged 18758 | -4/Waste | System corruption reached 10% 18772 | -4/Waste | Spotted C-40 Crusher 18783 | -4/Waste | Spotted C-40 Crusher 18790 | -4/Waste | Discovered new exit (range 11) 18797 | -4/Waste | Identified exit to Factory 18797 | -4/Waste | Entered Factory 18816 | -4/Factory | Discovered exit to Research (range 14) 18839 | -4/Factory | Scrapoids reinforcements arrived? 18864 | -4/Factory | Found Scrap Suit 18884 | -4/Factory | Lost 4 parts (1p2n1u) 18904 | -4/Factory | Discovered exit to Upper Caves (range 22) 18915 | -4/Factory | Build established: Scavenger-Mutant 18925 | -4/Factory | Allied Derelicts emerged from ambush trap array 19058 | -4/Factory | Spotted B-86 Titan 19081 | -4/Factory | Found Quantum Capacitor 19298 | -4/Factory | Core integrity fell below 50% 19311 | -4/Factory | Core integrity fell below 20% 19355 | -4/Factory | Destroyed 7 combat bots 19367 | -4/Factory | Lost 13 parts (2p2n5u4w) 19493 | -4/Factory | P-70 Sage assimilated allied Veteran 7a 19794 | -4/Factory | Central database locked down 19819 | -4/Factory | Entered Upper Caves 19831 | -4/Upper Caves | Learned location of Armory (-4) 19831 | -4/Upper Caves | Spotted B-86 Titan 19886 | -4/Upper Caves | Destroyed by S-27 Virus with Autogun Last Messages --------------- 19848_ System corrupted: Component data lost. 19864_ GEL:&DS=RC=CX5V6WO%O YUS17JXIM 19877_ Slug penetrates Wall. 19877_ Slug penetrates S-27 Virus. 19877_ S-27 Virus destroyed. 19880_ Slug penetrates Wall. 19880_ Slug penetrates S-27 Virus. 19880_ S-27 Virus suffers critical hit (Destroy). 19880_ Destroyed VTOL Module. 19881_ VTOL Module fries itself beyond repair. 19883_ S-27 Virus suffers critical hit (Destroy). 19883_ Destroyed VTOL Module. 19883_ Slug penetrates S-27 Virus. 19883_ S-27 Virus destroyed. 19884_ Lgt. Nuclear Core fries itself beyond repair. 19885_ GPES5P3H WMICD0&BPNTSZRD>DMRF 9JP%, Map ----- +----------------------------------------------------+ | | | | | | | | | | | | | | | ?????????????????????????????????????????????????? | | ?????????????????????????????????????????????????? | | ?????????????????????????????????????????????????? | | ?????????????????????????????????????????????????? | | ?????????????????????????????????????????????????? | | ?????????????????????????????????????????????????? | | ?????????????????????????????????????????????????? | | ?????????????????????????????????????????????????? | | ?????????????????????????????????????????????????? | | ?????????????????????????????????????????????????? | | ?????????????????????????????????????????????????? | | ?????????????????????????????????????????????????? | | ?????????????????????????????????????????????????? | | ?????????????????????????????????????????????????? | | ?????????????????#####?####?????????????????####?? | | ?????????????????# ### %#########????????## ### | | ????????????###### s ##???????# | | ????????????# #???????# | | ????????????# "" ## @## #???????# | | ????????????# " ## %## #???####?# | | ????????????# """" = ##???# #### | | ????????????# % ####????# ### | | ????????????####### #????#### ## | | ??????????????????### s #????# ##### | | ????????????????????## ### #????# | | ?????????????????????###?# ##??## | | ?????????????????????????## #### # ### | | ??????????????????????????## ## #??? | | ???????????????????????????## ### #???? | | ????????????????????????????#### #####?# ???? | | ???????????????????????????????## ##????? ??? | | ????????????????????????????????####?????? ?? | | ??????????????????????????????????????????#### ?? | | ??????????????????????????????????????????????# ? | | ???????????????????????????????????????????????# | | ?????????????????????????????????????????????????? | | ?????????????????????????????????????????????????? | | ?????????????????????????????????????????????????? | | ?????????????????????????????????????????????????? | | ?????????????????????????????????????????????????? | | ?????????????????????????????????????????????????? | | ?????????????????????????????????????????????????? | | ?????????????????????????????????????????????????? | +----------------------------------------------------+ Best States ------------- Heat Dissipation 105 Energy Generation 25 Energy Capacity 350 Matter Stores 300 Matter Capacity 300 Sight Range 23 Robot Scan Range 16 Terrain Scan Density 1010 Additional Mass Support 16 EM Shielding 3 Armor Coverage 2375 Resistance: KI 30 Weapon Shielding 15 Melee Speed Boost 30 Evasion (%) 76 Targeting Accuracy 32 Target Analysis 6 Core Analysis 6 Salvage Targeting 3 Offensive Hacking 34 Defensive Hacking 12 Authchip Count 3 Item Schematics ----------------- Hacking Suite | -8/Recycling | Hacked Adv. Reaction Control System | -6/Factory | Hacked Imp. Antigrav System | -6/Factory | Hacked Core Analyzer | -6/Factory | Hacked Adv. Sensor Array | -6/Zion | Archive Imp. Thermal Shield | -6/Zion | Archive Imp. Trap Scanner | -6/Zion | Archive Hpw. Shock Rifle | -6/Zion | Archive Imp. Actuator Array | -6/Zion | Archive Imp. Weapon Cycler | -6/Zion | Archive Wave Gun | -6/Zion | Archive Adv. Thermal Generator | -6/Zion | Archive Tesla Rifle | -6/Zion | Archive Imp. Reaction Control System | -6/Zion | Archive Neutrino Core | -6/Zion | Archive System Guard | -6/Zion | Archive Adv. Cooling System | -6/Zion | Archive IFF Parser | -6/Zion | Archive Antigrav Array | -5/Factory | Scanalyzed Robot Schematics ------------------ M-13 Machinist | -10/Materials | Hacked K-01 Serf | -6/Zion | Archive A-02 Transporter | -6/Zion | Archive O-24 Administrator | -6/Zion | Archive H-77 Assassin | -6/Zion | Archive Fabricated ------------ Adv. Reaction Control System | x2 | -6/Factory Repaired ---------- Arm. Huge Wheel | 46% | -6/Factory Linear Gravjet | 40% | -6/Factory Antigrav Array | 43% | -5/Factory | Broken Studied --------- Hyp. Gauss Cannon | -5/Factory | Hacked Gravmag Array | -5/Factory | Hacked Nuclear Pulse Array | -4/Factory | Hacked Alien Tech Used ----------------- None Achievements -------------- Left-hand Path Challenges ------------ None Game ------ Seed DisruptorSiegeHarness Manual? 0 Play Time 03:35:09 Cumulative 403.7 hours Start 2026.01.10 @ 20:31:37 End 2026.01.11 @ 00:09:08 Sessions 1 Manual Loads 0 Difficulty Rogue Special Mode None Game No. 143 Rogue 143 Adventurer 0 Explorer 0 Win Type - Total 10 Types 5/0/1/1/0/0/0/1/0/2 Lore% 85 Gallery% 81 Achievement% 71 Wizard Run 0 Options --------- Layout 1 ASCII 0 Keyboard 0 Movement Mouse Keybinds 0 Fullscreen 2 Font 32/SmallcapsGlow Map View 50x35 Zoom Use 0% Tactical HUD 1 Map Filters NONE Filters NONE Steam 1 RUN: 5bc88878-e1eb-418a-8c80-068cf55b2ea4